{"text_format":"3","workbook":"xlsx","n_sheets":2,"sheets":["Podstawowe informacje","Zaangażowania kredytowe"],"not_rendered":{"images":18,"macros":1,"defined_names":47},"read":"whole","date_system":"1900"}

{"sheet":"Podstawowe informacje","index":0,"n_rows":874,"n_cols":50,"rows_kept":874,"merged":[[1,0,2,2],[1,4,2,44],[3,1,3,7],[3,8,3,45],[5,1,5,46],[6,1,6,46],[8,1,8,7],[8,8,8,17],[8,23,8,29],[8,30,8,39],[10,1,10,7],[10,8,10,39],[12,1,12,7],[12,8,12,22],[12,23,12,29],[12,30,12,39],[14,1,14,7],[14,8,14,17],[14,23,14,29],[14,30,14,39],[16,1,16,7],[16,8,16,22],[16,23,16,29],[16,30,16,39],[20,1,20,7],[20,8,20,22],[20,23,20,29],[20,30,20,33],[20,34,20,38],[20,39,20,45],[22,1,22,7],[22,8,22,22],[22,23,22,29],[22,30,22,33],[22,34,22,38],[22,39,22,45],[24,20,24,24],[26,8,26,18],[26,19,26,29],[26,30,26,37],[26,39,26,40],[27,8,27,18],[27,19,27,29],[27,30,27,37],[29,1,29,46],[30,1,30,46],[32,1,34,7],[32,8,34,45],[36,1,36,7],[36,8,36,12],[36,15,36,21],[36,23,36,27],[36,30,36,40],[36,41,36,45],[38,1,38,7],[38,8,38,33],[40,1,40,45],[41,1,41,37],[41,38,41,45],[41,46,41,47],[42,1,42,37],[42,38,42,45],[44,1,44,45],[45,1,45,22],[45,23,45,33],[45,34,45,37],[45,38,45,45],[45,46,45,47],[46,1,46,22],[46,23,46,33],[46,34,46,37],[46,38,46,45],[48,1,48,45],[49,1,49,22],[49,23,49,30],[49,31,49,37],[49,38,49,45],[49,46,49,47],[50,1,50,22],[50,23,50,30],[50,31,50,37],[50,38,50,45],[52,1,52,22],[52,23,52,30],[52,31,52,37],[52,38,52,45],[53,1,53,22],[53,23,53,30],[53,31,53,37],[53,38,53,45],[55,1,55,45],[56,1,56,22],[56,23,56,30],[56,31,56,45],[56,46,56,47],[57,1,57,22],[57,23,57,30],[57,31,57,45],[59,1,59,45],[61,1,61,45],[62,1,62,22],[62,23,62,30],[62,31,62,37],[62,38,62,39],[63,1,63,22],[63,23,63,30],[63,31,63,37],[65,1,65,15],[65,16,65,18],[65,23,65,29],[65,30,65,33],[65,34,65,37],[65,38,65,41],[65,42,65,45],[66,1,66,15],[66,16,66,18],[66,23,66,29],[66,30,66,33],[66,34,66,37],[66,38,66,41],[66,42,66,45],[67,1,67,15],[67,16,67,18],[67,19,67,22],[68,1,68,15],[68,16,68,18],[69,1,69,15],[69,16,69,18],[71,1,71,15],[71,16,71,18],[73,1,73,30],[74,1,74,11],[74,12,74,22],[74,23,74,30],[74,31,74,34],[74,35,74,40],[74,41,74,45],[75,1,75,11],[75,12,75,22],[75,23,75,30],[75,31,75,34],[75,35,75,40],[75,41,75,45],[76,1,76,11],[76,12,76,22],[76,23,76,30],[76,31,76,34],[76,35,76,40],[76,41,76,45],[77,1,77,11],[77,12,77,22],[77,23,77,30],[77,31,77,34],[77,35,77,40],[77,41,77,45],[78,1,78,11],[78,12,78,22],[78,23,78,30],[78,31,78,34],[78,35,78,40],[78,41,78,45],[79,1,79,11],[79,12,79,22],[79,23,79,30],[79,31,79,34],[79,35,79,40],[79,41,79,45],[81,1,81,11],[81,12,81,22],[81,23,81,30],[81,31,81,34],[81,35,81,40],[81,41,81,45],[82,1,82,11],[82,12,82,22],[82,23,82,30],[82,31,82,34],[82,35,82,40],[82,41,82,45],[83,1,83,11],[83,12,83,22],[83,23,83,30],[83,31,83,34],[83,35,83,40],[83,41,83,45],[84,1,84,11],[84,12,84,22],[84,23,84,30],[84,31,84,34],[84,35,84,40],[84,41,84,45],[85,1,85,11],[85,12,85,22],[85,23,85,30],[85,31,85,34],[85,35,85,40],[85,41,85,45],[86,1,86,11],[86,12,86,22],[86,23,86,30],[86,31,86,34],[86,35,86,40],[86,41,86,45],[88,1,88,45],[89,1,89,22],[89,23,89,30],[89,31,89,37],[89,38,89,40],[90,1,90,22],[90,23,90,30],[90,31,90,37],[90,38,90,45],[92,1,92,46],[93,1,93,46],[95,12,95,18],[95,19,95,22],[96,1,96,11],[96,12,96,22],[97,1,97,7],[97,8,97,11],[97,12,97,18],[97,19,97,22],[98,1,98,7],[98,8,98,11],[98,12,98,18],[98,19,98,22],[99,1,99,7],[99,8,99,11],[99,12,99,18],[99,19,99,22],[100,1,100,7],[100,8,100,11],[100,12,100,18],[100,19,100,22],[101,1,101,7],[101,8,101,11],[101,12,101,18],[101,19,101,22],[102,1,102,7],[102,8,102,11],[102,12,102,18],[102,19,102,22],[103,1,103,7],[103,8,103,11],[103,12,103,18],[103,19,103,22],[104,1,104,7],[104,8,104,11],[104,12,104,18],[104,19,104,22],[105,1,105,7],[105,8,105,11],[105,12,105,18],[105,19,105,22],[106,1,106,7],[106,8,106,11],[106,12,106,18],[106,19,106,22],[107,1,107,7],[107,8,107,11],[107,12,107,18],[107,19,107,22],[109,1,109,46],[110,1,110,46],[112,26,112,28],[112,29,112,31],[112,38,112,40],[112,41,112,43],[113,15,113,18],[113,19,113,25],[113,26,113,28],[113,29,113,31],[113,32,113,37],[113,38,113,40],[113,41,113,43],[116,1,116,20],[116,21,116,46],[117,1,117,20],[117,21,117,25],[117,27,117,29],[117,31,117,32],[117,34,117,45],[119,1,119,41],[119,43,119,44],[121,1,121,46],[122,1,122,46],[123,1,124,46],[129,1,129,13],[130,1,130,13],[130,38,130,46]]}
["2.37"]
["AK2a",{"$nulls":3},"Podstawowe informacje o działalności gospodarczej",{"$nulls":44},1]
[{"$nulls":49},1]
[null,"Nazwa Wnioskodawcy",{"$nulls":6},"Uniwersytet Technologiczno-Przyrodniczy",{"$nulls":40},1]
[null,"WSZYSTKIE KWOTY W TYS.",{"$nulls":47},1]
[{"$nulls":49},1]
[null,"DANE ADRESOWE",{"$nulls":47},1]
[{"$nulls":49},1]
[null,"REGON",{"$nulls":6},"000001689",{"$nulls":14},"NIP",{"$nulls":6},"554-031-31-07",{"$nulls":18},1]
[{"$nulls":49},1]
[null,"Forma prawna",{"$nulls":6},"SZKOŁA LUB PLACÓWKA NIEPUBLICZNA",{"$nulls":40},1]
[{"$nulls":49},1]
[null,"Osoba kontaktowa",{"$nulls":6},"Renata Zalewska",{"$nulls":14},"Stanowisko",{"$nulls":6},"Kwestor",{"$nulls":18},1]
[{"$nulls":49},1]
[null,"Nr telefonu (kom)",{"$nulls":21},"Nr telefonu (biuro)",{"$nulls":6},"52 379 17 91",{"$nulls":18},1]
[{"$nulls":49},1]
[null,"Adres e-mail",{"$nulls":6},"  renata.zalewska@utp.edu.pl",{"$nulls":14},"Strona www",null,"Strona www",{"$nulls":4},"www.utp.edu.pl",{"$nulls":18},1]
[{"$nulls":49},1]
[null,"Adres siedziby",{"$nulls":47},1]
[{"$nulls":49},1]
[null,"Ulica",{"$nulls":6},"Kordeckiego",{"$nulls":14},"Numer",{"$nulls":6},20,{"$nulls":3},"Lokal",{"$nulls":14},1]
[{"$nulls":49},1]
[null,"Miejscowość",{"$nulls":6},"Bydgoszcz",{"$nulls":14},"Kod pocztowy",{"$nulls":6},"85-225",{"$nulls":3},"Województwo",{"$nulls":4},"kujawsko-pomorskie",{"$nulls":9},1]
[{"$nulls":49},1]
[null,"Miejsce prowadzenia działalności",{"$nulls":47},1]
[{"$nulls":49},1]
[{"$nulls":8},"Miasto",{"$nulls":10},"Zakres prowadzonej działalności",{"$nulls":10},"Czy nieruchomość jest własnością Wnioskodawcy?",{"$nulls":18},1]
[{"$nulls":49},1]
[{"$nulls":49},1]
[{"$nulls":49},1]
[null,"PODSTAWOWE INFORMACJE",{"$nulls":47},1]
[{"$nulls":49},1]
[null,"Krótki opis prowadzonej działalności",{"$nulls":6},"Podstawowym przedmiotem działalności Uczelni jest kształcenie studentów oraz prowadzenie prac naukowo-badawczych",{"$nulls":40},1]
[{"$nulls":49},1]
[{"$nulls":49},1]
[{"$nulls":49},1]
[null,"Miesiąc i rok rozpoczęcia działalności (rrrr-mm)",{"$nulls":6},"1951-09-01",{"$nulls":6},"Liczba pracowników w przeliczeniu na pełne etaty ",{"$nulls":14},"Jaka część (w %)kapitału podstawowego Wnioskodawcy została wniesiona aportem?",{"$nulls":18},1]
[{"$nulls":49},1]
[null,"Kod PKD działalności wg PKD 2007 (zgodnie z REGON)",{"$nulls":47},1]
[{"$nulls":49},1]
[null,"Proszę podać rozkład przychodów Wnioskodawcy na poszczególne produkty lub usługi (kategorie obejmujące co najmniej 10% przychodu lub pięć największych)",{"$nulls":47},1]
[null,"Produkt, towar lub usługa",{"$nulls":36},"Procent przychodu w ostatnim roku obrotowym",{"$nulls":10},1]
[null,"Uczelnia jest jednostką usługową świadczącą usługi w zakrersie kształcenia studentów oraz prowadzenia prac naukowo-badawczych",{"$nulls":47},1]
[{"$nulls":49},1]
[null,"Proszę podać informacje o udziałowcach/akcjonariuszach Wnioskodawcy posiadających 5% lub więcej udziałów/akcji lub pięciu największych",{"$nulls":47},1]
[null,"Imię i Nazwisko/Nazwa",{"$nulls":21},"Forma prawna",{"$nulls":10},"% udziałów /akcji",{"$nulls":3},"PESEL lub REGON",{"$nulls":10},1]
[{"$nulls":49},1]
[{"$nulls":49},1]
[null,"Proszę podać skład Zarządu Wnioskodawcy",{"$nulls":47},1]
[null,"Imię i nazwisko",{"$nulls":21},"PESEL",{"$nulls":7},"Liczba lat na obecnym stanowisku",{"$nulls":6},"Doświadczenie w obszarze działalności Wnioskodawcy\n(liczba lat)",{"$nulls":10},1]
[{"$nulls":49},1]
[]
[{"$nulls":23},"Imię i nazwisko",{"$nulls":7},"Liczba lat na obecnym stanowisku",{"$nulls":6},"Doświadczenie w obszarze działalności Wnioskodawcy\n(liczba lat)",{"$nulls":10},1]
[null,"Dyrektor finansowy/główny księgowy"]
[]
[null,"Podmioty powiązane organizacyjnie*",{"$nulls":47},1]
[null,"Imię i Nazwisko/Nazwa",{"$nulls":21},"PESEL lub REGON",{"$nulls":7},"Opis powiązania",{"$nulls":17},1]
[null,"Rolniczy Zakład Doświadczalny w Minikowie",{"$nulls":47},1]
[{"$nulls":49},1]
[null,"* a) kontrola nad podmiotem poprzez członków zarządu, akcjonariusza większościowego lub małżonka akcjonariusza większościowego bez rozdzielności majątkowej, \n   b) mniejszościowy udział w zarządzaniu podmiotem poprzez członków zarządu lub prokurentów",{"$nulls":47},1]
[{"$nulls":49},1]
[null,"Podmioty powiązane kapitałowo - udziały Wnioskodawcy w innych podmiotach",{"$nulls":47},1]
[null,"Imię i Nazwisko/Nazwa",{"$nulls":21},"PESEL lub REGON",{"$nulls":7},"% udziałów",{"$nulls":17},1]
[null,"Spółdzielnia Mleczarska MLEKPOL w Grajewie ",{"$nulls":21},"000827780",{"$nulls":7},0.02,{"$nulls":17},1]
[{"$nulls":49},1]
[null,"Jaki jest zasięg terytorialny sprzedaży Wnioskodawcy?",{"$nulls":14},"Udział %",{"$nulls":6},"Kwartał",{"$nulls":6},"I",{"$nulls":3},"II",{"$nulls":3},"III",{"$nulls":3},"IV",{"$nulls":6},1]
[null,"przychody w ramach jednego powiatu",{"$nulls":21},"% rocznych przychodów w kwartale"]
[null,"przychody krajowe spoza jednego powiatu, ale w ramach obszaru jednego województwa",{"$nulls":47},1]
[null,"przychody krajowe z obszaru przekraczającego terytorium jednego województwa",{"$nulls":47},1]
[null,"przychody z działalności zagranicznej",{"$nulls":47},1]
[{"$nulls":49},1]
[null,"Jaki procent zakupów Wnioskodawcy stanowi import?",{"$nulls":47},1]
[{"$nulls":49},1]
[null,"Proszę podać dane 5 największych dostawców i odbiorców (informacje za ostatni rok obrotowy)",{"$nulls":47},1]
[null,"Nazwa",{"$nulls":10},"Adres",{"$nulls":10},"Okres współpracy\n(w m-cach)",{"$nulls":7},"% sprzedaży",{"$nulls":3},"Kwota sprzedaży",{"$nulls":5},"Terminy płatności \n(w dniach)",{"$nulls":7},1]
[null,"Bydgoska Telewizja Kablowa GAWEX Sp. jawna",{"$nulls":10},"ul. Porazińskiej 4, 85-791 Bydgoszcz",{"$nulls":10},12,{"$nulls":7},{"$f":"AJ76/128554.3*100","v":{"v":0.22933499696237308,"d":"0.23"}},{"$nulls":3},294.82,{"$nulls":5},"do 25 każdego bieżącego miesiąca",{"$nulls":7},1]
[null,"3GNS Sp. z o.o.",{"$nulls":10},"ul. Taśmowa 7, 02-677 Warszawa",{"$nulls":10},12,{"$nulls":7},{"$f":"AJ77/128554.3*100","v":{"v":0.3049761851606675,"d":"0.30"}},{"$nulls":3},392.06,{"$nulls":5},"30 dni od daty odbioru faktury",{"$nulls":7},1]
[null,"Alfa Składaniec s.c.",{"$nulls":10},"ul. Kaliskiego 7, 85-789 Bydgoszcz",{"$nulls":10},12,{"$nulls":7},{"v":0.1368371186339158,"d":"0.14"},{"$nulls":3},175.91,{"$nulls":5},"do 25 każdego bieżącego miesiąca",{"$nulls":7},1]
[null,"AWACOM Sp. z o.o. ",{"$nulls":10},"ul. 16 Pułku Ułanów Wlkp. 1, 85-319 Bydgoszcz",{"$nulls":10},12,{"$nulls":7},{"v":0.313680678125897,"d":"0.31"},{"$nulls":3},403.25,{"$nulls":5},"do 10 następnego miesiąca",{"$nulls":7},1]
[null,"Zakład Usług Gastronomicznych W. Lewicki ",{"$nulls":10},"ul. Gen. Andersa 1, 85-796 Bydgoszcz",{"$nulls":10},12,{"$nulls":7},{"v":0.18125414708026102,"d":"0.18"},{"$nulls":3},233.01,{"$nulls":5},"14 dni od daty wystawienia faktury",{"$nulls":7},1]
[{"$nulls":49},1]
[null,"Nazwa",{"$nulls":10},"Adres",{"$nulls":10},"Okres współpracy\n(w m-cach)",{"$nulls":7},"% zakupów",{"$nulls":3},"Kwota zakupów",{"$nulls":5},"Terminy płatności \n(w dniach)",{"$nulls":7},1]
[null,"Komunalne Przedsiębiorstwo Energetyki Cieplnej Sp. z o.o.",{"$nulls":10},"Ks. Józefa Schulza 5, 85-315 Bydgoszcz",{"$nulls":10},12,{"$nulls":7},{"$f":"AJ83/124666.1*100","v":{"v":2.2632696458780694,"d":"2.26"}},{"$nulls":3},{"v":2821.53,"d":"2,821.53"},{"$nulls":5},"14 dni od daty wystawienia faktury",{"$nulls":7},1]
[null,"EKOTRADE Sp. z o.o. ",{"$nulls":10},"ul. Fabryczna 11, 85-741 Bydgoszcz",{"$nulls":10},12,{"$nulls":7},{"$f":"AJ84/124666.1*100","v":{"v":0.6805378527121647,"d":"0.68"}},{"$nulls":3},{"v":848.4,"d":"848.40"},{"$nulls":5},"14 dni od daty wystawienia faktury",{"$nulls":7},1]
[null,"Instytut Chemii Bioorganicznej PAN",{"$nulls":10},"ul. Z. Noskowskiego 12/14, 61-704 Poznań",{"$nulls":10},12,{"$nulls":7},{"v":0.44413036102035747,"d":"0.44"},{"$nulls":3},553.68,{"$nulls":5},"14 dni od daty wystawienia faktury",{"$nulls":7},1]
[null,"Miejskie Wodociągi i Kanalizacja Sp. z o.o.",{"$nulls":10},"ul. Toruńska 103, 85-950 Bydgoszcz",{"$nulls":10},12,{"$nulls":7},{"v":0.7092385179290921,"d":"0.71"},{"$nulls":3},884.18,{"$nulls":5},"14 dni od daty wystawienia faktury",{"$nulls":7},1]
[null,"Spółdzielnia Pracy Inventus ",{"$nulls":10},"ul. Grudziądzka 5, 85-130 Bydgoszcz",{"$nulls":10},12,{"$nulls":7},{"v":1.4329797755765201,"d":"1.43"},{"$nulls":3},{"v":1786.44,"d":"1,786.44"},{"$nulls":5},"14 dni od daty wystawienia faktury",{"$nulls":7},1]
[{"$nulls":49},1]
[null,"Wymagane koncesje i zezwolenia",{"$nulls":47},1]
[null,"Koncesja/zezwolenie",{"$nulls":21},"Czy aktualnie posiadana/e?",{"$nulls":7},"Data ważności\n(dd-mm-rrrr)",{"$nulls":17},1]
[null,"Nie jest wymagane",{"$nulls":47},1]
[{"$nulls":49},1]
[{"$nulls":49},1]
[null,"STRUKTURA WIEKOWA NALEŻNOŚCI I ZOBOWIĄZAŃ HANDLOWYCH",{"$nulls":47},1]
[{"$nulls":49},1]
[{"$nulls":12},"Stan na dzień ostatniego zamkniętego kwartału\n(rrrr-mm-dd)",{"$nulls":6},"2013-06-30",{"$nulls":29},1]
[null,"Należności",{"$nulls":10},"Zobowiązania",{"$nulls":36},1]
[null,"Wyszczególnienie",{"$nulls":6},"Kwota\nw tys. PLN",{"$nulls":3},"Wyszczególnienie",{"$nulls":6},"Kwota\nw tys. PLN",{"$nulls":29},1]
[null,"Należności ogółem",{"$nulls":6},{"$f":"28.45","v":28.45},{"$nulls":3},"Zobowiązania ogółem",{"$nulls":36},1]
[null,"z tego :",{"$nulls":6},28.45,{"$nulls":3},"z tego :",{"$nulls":36},1]
[null,"Terminowe",{"$nulls":6},{"$f":"1126.75+165.49","v":{"v":1292.24,"d":"1,292.24"}},{"$nulls":3},"Terminowe",{"$nulls":6},{"$f":"1494.63","v":{"v":1494.63,"d":"1,494.63"}},{"$nulls":29},1]
[null,"Przeterminowane",{"$nulls":10},"Przeterminowane",{"$nulls":36},1]
[null,"1-30 dni",{"$nulls":6},{"$f":"22.34+134.63+441.13","v":{"v":598.1,"d":"598.10"}},{"$nulls":3},"1-30 dni",{"$nulls":6},{"$f":"217.02+95.98","v":{"v":313,"d":"313.00"}},{"$nulls":29},1]
[null,"31-60 dni",{"$nulls":6},{"$f":"5.11+59.99+216.14","v":281.24},{"$nulls":3},"31-60 dni",{"$nulls":6},{"$f":"3.08+189.36","v":{"v":192.44000000000003,"d":"192.44"}},{"$nulls":29},1]
[null,"61-90 dni",{"$nulls":6},{"$f":"0.39+109.28","v":109.67},{"$nulls":3},"61-90 dni",{"$nulls":6},{"$f":"0","v":{"v":0,"d":"0.00"}},{"$nulls":29},1]
[null,"91-180 dni",{"$nulls":6},{"$f":"0.61+0.13","v":0.74},{"$nulls":3},"91-180 dni",{"$nulls":6},{"$f":"0","v":{"v":0,"d":"0.00"}},{"$nulls":29},1]
[null,"181-360 dni",{"$nulls":6},{"$f":"4.47","v":4.47},{"$nulls":3},"181-360 dni",{"$nulls":6},{"$f":"3.96","v":3.96},{"$nulls":29},1]
[null,"Powyżej 360 dni",{"$nulls":6},{"$f":"117.88","v":117.88},{"$nulls":3},"Powyżej 360 dni",{"$nulls":6},{"$f":"1.48","v":1.48},{"$nulls":29},1]
[{"$nulls":49},1]
[{"$nulls":49},1]
[null,"WSPÓŁPRACA Z INNYMI BANKAMI I INSTYTUCJAMI FINANSOWYMI",{"$nulls":47},1]
[{"$nulls":49},1]
[{"$nulls":26},"Min",null,null,"Max",{"$nulls":8},"Min",null,null,"Max",{"$nulls":7},0]
[null,"Ilość przypadków nieterminowego regulowania zobowiązań ",{"$nulls":17},"Długość trwania zaległości",{"$nulls":12},"Kwota zaległości",{"$nulls":16},{"$f":"AX113","v":0}]
[{"$nulls":49},{"$f":"AX114","v":0}]
[null,"Instytucje finansowe z którymi współpracuje Wnioskodawca",{"$nulls":47},1]
[null,"Nazwa instytucji",{"$nulls":19},"Zakres współpracy",{"$nulls":27},1]
[{"$nulls":21},"kredyty/finansowanie",{"$nulls":5},"rachunek",{"$nulls":3},"depozyt",null,null,"transakcje skarbowe (FX, terminowe, pochodne)",{"$nulls":14},1]
[{"$nulls":49},1]
[null,"Czy na dzień składania wniosku Klient posiada wymagalne zaległości wobec ZUS, US, pracowników lub inne zaległe zobowiązania publiczno-prawne, a w przypadku realizowanego postępowania układowego z tytułu ww. zaległych zobowiązań publiczno-prawnych, nie realizuje terminowo tego zadłużenia?",{"$nulls":47},1]
[{"$nulls":49},1]
[{"$nulls":49},1]
[null,"PODPISY",{"$nulls":47},1]
[null,"Wiarygodność powyższych danych oraz ich zgodność ze stanem faktycznym i prawnym potwierdzam własnoręcznym podpisem.",{"$nulls":47},1]
[{"$nulls":49},1]
[{"$nulls":49},1]
[{"$nulls":49},1]
[{"$nulls":49},1]
[{"$nulls":49},1]
[null,"________________________________________________",{"$nulls":47},1]
[null,"Stempel Wnioskodawcy i podpisy osób upoważnionych",{"$nulls":36},"Miejscowość, data",{"$nulls":10},1]
[{"$nulls":49},1]
[{"$nulls":49},1]
[]
[]
[]
[]
[]
[]
["Wojewodztwa"]
["dolnośląskie"]
["kujawsko-pomorskie"]
["lubelskie"]
["lubuskie"]
["łódzkie"]
["małopolskie"]
["mazowieckie"]
["opolskie"]
["podkarpackie"]
["podlaskie"]
["pomorskie"]
["śląskie"]
["świętokrzyskie"]
["warmińsko-mazurskie"]
["wielkopolskie"]
["zachodniopomorskie"]
{"$rows_empty":8}
["Formy prawne"]
["OSOBA FIZYCZNA PROWADZĄCA DZIAŁALNOŚĆ GOSPODARCZĄ "]
["SPÓŁKA CYWILNA"]
["SPÓŁKA JAWNA"]
["SPÓŁKA PARTNERSKA"]
["SPÓŁKA KOMANDYTOWA"]
["SPÓŁKA KOMANDYTOWO-AKCYJNA"]
["SPÓŁKA Z OGRANICZONĄ ODPOWIEDZIALNOŚCIĄ"]
["SPÓŁKA AKCYJNA"]
["FUNDACJA"]
["FUNDUSZ"]
["FUNDUSZ CELOWY"]
["GOSPODARSTWO POMOCNICZE JEDNOSTKI BUDŻETOWEJ"]
["INNY KOŚCIÓŁ LUB ZWIĄZEK WYZNANIOWY"]
["INSTYTUCJA KULTURY"]
["JEDNOSTKA PAŃSTWOWA LUB ZAKŁAD BUDŻETOWY"]
["KASA CHORYCH"]
["KLUB SPORTOWY"]
["KOMENDA POWIATOWA (MIEJSKA) POLICJI"]
["KOMORNIK"]
["KOŚCIÓŁ KATOLICKI LUB JEDNOSTKA ORGANIZACYJNA KOŚCIOŁA KATOLICKIEGO"]
["NOTARIAT"]
["ODDZIAŁ FIRMY ZAGRANICZNEJ W POLSCE"]
["ORGANIZACJA SPOŁECZNA"]
["ORGANIZACJA ZAWODOWA"]
["OSOBA FIZYCZNA PROWADZĄCA DZIAŁALNOŚĆ WYTWÓRCZĄ W ROLNICTWIE"]
["PARTIA POLITYCZNA"]
["POWIATOWA (MIEJSKA) KOMENDA PAŃSTWOWEJ STRAŻY POŻARNEJ"]
["POWIATOWA INSPEKCJA BUDOWLANA"]
["POWIATOWA INSPEKCJA SANITARNA"]
["POWIATOWA INSPEKCJA WETERYNARYJNA"]
["PRZEDSTAWICIELSTWO DYPLOMATYCZNE, KONSULARNE, MISJA SPECJALNA PAŃSTWA OBCEGO"]
["PRZEDSTAWICIELSTWO FIRMY ZAGRANICZNEJ W POLSCE"]
["SAMORZĄD GOSPODARCZY I ZAWODOWY"]
["SPÓŁDZIELNIA"]
["SPÓŁKA AKCYJNA W ORGANIZACJI"]
["SPÓŁKA Z OGRANICZONĄ ODPOWIEDZIALNOŚCIĄ W ORGANIZACJI"]
["SPZOZ"]
["ŚRODKI SPECJALNE JEDNOSTKI BUDŻETOWEJ"]
["STOWARZYSZENIE"]
["SZKOŁA LUB PLACÓWKA NIEPUBLICZNA"]
["WOJEWÓDZKI FUNDUSZ OCHRONY ŚRODOWISKA I GOSPODARKI WODNEJ"]
["WSPÓLNOTA MIESZKANIOWA"]
["ZWIĄZEK SAMORZĄDOWY LUB ZWIĄZEK MIĘDZY SAMORZĄDAMI"]
[]
[]
[]
[]
["Działalność"]
["zakład produkcyjny"]
["magazyn"]
["punkt sprzedaży"]
["biuro handlowe"]
["inne"]
[]
[]
["01.11 Uprawa zbóż, roślin strączkowych i roślin oleistych na nasiona, z wyłączeniem ryżu"]
["01.12 Uprawa ryżu"]
["01.13 Uprawa warzyw, włączając melony oraz uprawa roślin korzeniowych i roślin bulwiastych "]
["01.14 Uprawa trzciny cukrowej"]
["01.15 Uprawa tytoniu"]
["01.16 Uprawa roślin włóknistych"]
["01.19 Pozostałe uprawy rolne inne niż wieloletnie"]
["01.21 Uprawa winogron"]
["01.22 Uprawa drzew i krzewów owocowych tropikalnych i podzwrotnikowych"]
["01.23 Uprawa drzew i krzewów owocowych cytrusowych"]
["01.24 Uprawa drzew i krzewów owocowych ziarnkowych i pestkowych"]
["01.25 Uprawa pozostałych drzew i krzewów owocowych oraz orzechów"]
["01.26 Uprawa drzew oleistych"]
["01.27 Uprawa roślin wykorzystywanych do produkcji napojów"]
["01.28 Uprawa roślin przyprawowych i aromatycznych oraz roślin wykorzystywanych do produkcji leków i wyrobów farmaceutycznych"]
["01.29 Uprawa pozostałych roślin wieloletnich"]
["01.30 Rozmnażanie roślin"]
["01.41 Chów i hodowla bydła mlecznego"]
["01.42 Chów i hodowla pozostałego bydła i bawołów"]
["01.43 Chów i hodowla koni i pozostałych zwierząt koniowatych"]
["01.44 Chów i hodowla wielbłądów i zwierząt wielbłądowatych"]
["01.45 Chów i hodowla owiec i kóz"]
["01.46 Chów i hodowla świń"]
["01.47 Chów i hodowla drobiu"]
["01.49 Chów i hodowla pozostałych zwierząt"]
["01.50 Uprawy rolne połączone z chowem i hodowlą zwierząt (działalność mieszana)"]
["01.61 Działalność usługowa wspomagająca produkcję roślinną"]
["01.62 Działalność usługowa wspomagająca chów i hodowlę zwierząt gospodarskich"]
["01.63 Działalność usługowa następująca po zbiorach"]
["01.64 Obróbka nasion dla celów rozmnażania roślin"]
["01.70 Łowiectwo i pozyskiwanie zwierząt łownych, włączając działalność usługową"]
["02.10 Gospodarka leśna i pozostała działalność leśna, z wyłączeniem pozyskiwania produktów leśnych "]
["02.20 Pozyskiwanie drewna"]
["02.30 Pozyskiwanie dziko rosnących produktów leśnych, z wyłączeniem drewna"]
["02.40 Działalność usługowa związana z leśnictwem "]
["03.11 Rybołówstwo w wodach morskich "]
["03.12 Rybołówstwo w wodach śródlądowych "]
["03.21 Chów i hodowla ryb oraz pozostałych organizmów wodnych w wodach morskich"]
["03.22 Chów i hodowla ryb oraz pozostałych organizmów wodnych w wodach śródlądowych"]
["05.10 Wydobywanie węgla kamiennego"]
["05.20 Wydobywanie węgla brunatnego (lignitu)"]
["06.10 Górnictwo ropy naftowej"]
["06.20 Górnictwo gazu ziemnego"]
["07.10 Górnictwo rud żelaza"]
["07.21 Górnictwo rud uranu i toru"]
["07.29 Górnictwo pozostałych rud metali nieżelaznych"]
["08.11 Wydobywanie kamieni ozdobnych oraz kamienia dla potrzeb budownictwa, skał wapiennych, gipsu, kredy i łupków"]
["08.12 Wydobywanie żwiru i piasku; wydobywanie gliny i kaolinu"]
["08.91 Wydobywanie minerałów dla przemysłu chemicznego oraz do produkcji nawozów"]
["08.92 Wydobywanie torfu"]
["08.93 Wydobywanie soli"]
["08.99 Pozostałe górnictwo i wydobywanie, gdzie indziej niesklasyfikowane"]
["09.10 Działalność usługowa wspomagająca eksploatację złóż ropy naftowej i gazu ziemnego "]
["09.90 Działalność usługowa wspomagająca pozostałe"]
["10.11 Przetwarzanie i konserwowanie mięsa, z wyłączeniem mięsa z drobiu"]
["10.12 Przetwarzanie i konserwowanie mięsa z drobiu "]
["10.13 Produkcja wyrobów z mięsa, włączając wyroby z mięsa drobiowego "]
["10.20 Przetwarzanie i konserwowanie ryb, skorupiaków i mięczaków"]
["10.31 Przetwarzanie i konserwowanie ziemniaków"]
["10.32 Produkcja soków z owoców i warzyw"]
["10.39 Pozostałe przetwarzanie i konserwowanie owoców i warzyw"]
["10.41 Produkcja olejów i pozostałych tłuszczów płynnych"]
["10.42 Produkcja margaryny i podobnych tłuszczów jadalnych"]
["10.51 Przetwórstwo mleka i wyrób serów"]
["10.52 Produkcja lodów"]
["10.61 Wytwarzanie produktów przemiału zbóż"]
["10.62 Wytwarzanie skrobi i wyrobów skrobiowych"]
["10.71 Produkcja pieczywa; produkcja świeżych wyrobów ciastkarskich i ciastek "]
["10.72 Produkcja sucharów i herbatników; produkcja konserwowanych wyrobów ciastkarskich i ciastek "]
["10.73 Produkcja makaronów, klusek, kuskusu i podobnych wyrobów mącznych"]
["10.81 Produkcja cukru"]
["10.82 Produkcja kakao, czekolady i wyrobów cukierniczych"]
["10.83 Przetwórstwo herbaty i kawy"]
["10.84 Produkcja przypraw"]
["10.85 Wytwarzanie gotowych posiłków i dań"]
["10.86 Produkcja artykułów spożywczych homogenizowanychi żywności dietetycznej"]
["10.89 Produkcja pozostałych artykułów spożywczych, gdzie indziej niesklasyfikowana"]
["10.91 Produkcja gotowej paszy dla zwierząt gospodarskich"]
["10.92 Produkcja gotowej karmy dla zwierząt domowych"]
["11.01 Destylowanie, rektyfikowanie i mieszanie alkoholi"]
["11.02 Produkcja win gronowych"]
["11.03 Produkcja cydru i pozostałych win owocowych"]
["11.04 Produkcja pozostałych niedestylowanych napojów fermentowanych "]
["11.05 Produkcja piwa"]
["11.06 Produkcja słodu "]
["11.07 Produkcja napojów bezalkoholowych; produkcja wód mineralnych i pozostałych wód butelkowanych"]
["12.00 Produkcja wyrobów tytoniowych"]
["13.10 Produkcja przędzy bawełnianej"]
["13.10 Produkcja przędzy wełnianej"]
["13.10 Produkcja przędzy z pozostałych włókien tekstylnych, włączając produkcję nici"]
["13.10 Produkcja przędzy z włókien chemicznych"]
["13.20 Produkcja pozostałych tkanin"]
["13.20 Produkcja tkanin bawełnianych"]
["13.20 Produkcja tkanin wełnianych"]
["13.20 Produkcja tkanin z włókien chemicznych"]
["13.30 Wykończanie wyrobów włókienniczych"]
["13.91 Produkcja dzianin metrażowych"]
["13.92 Produkcja gotowych wyrobów tekstylnych "]
["13.93 Produkcja dywanów i chodników"]
["13.94 Produkcja wyrobów powroźniczych, lin, szpagatów i wyrobów sieciowych"]
["13.95 Produkcja włóknin i wyrobów wykonanych z włóknin, z wyłączeniem odzieży"]
["13.96 Produkcja pozostałych technicznych i przemysłowych wyrobów tekstylnych"]
["13.99 Produkcja pozostałych wyrobów tekstylnych, gdzie indziej niesklasyfikowana "]
["14.11 Produkcja odzieży skórzanej"]
["14.12 Produkcja odzieży roboczej"]
["14.13 Produkcja pozostałej odzieży wierzchniej"]
["14.14 Produkcja bielizny"]
["14.19 Produkcja pozostałej odzieży i dodatków do odzieży"]
["14.20 Produkcja wyrobów futrzarskich"]
["14.31 Produkcja wyrobów pończoszniczych"]
["14.39 Produkcja pozostałej odzieży dzianej"]
["15.11 Wyprawa skór, garbowanie; wyprawa i barwienie skór futerkowych"]
["15.12 Produkcja toreb bagażowych, toreb ręcznych i podobnych wyrobów kaletniczych; produkcja wyrobów rymarskich "]
["15.20 Produkcja obuwia"]
["16.10 Produkcja wyrobów tartacznych"]
["16.21 Produkcja arkuszy fornirowych i płyt wykonanych na bazie drewna"]
["16.22 Produkcja gotowych parkietów podłogowych "]
["16.23 Produkcja pozostałych wyrobów stolarskich i ciesielskich dla budownictwa"]
["16.24 Produkcja opakowań drewnianych"]
["16.29 Produkcja pozostałych wyrobów z drewna; produkcja wyrobów z korka, słomyi materiałów używanych do wyplatania"]
["17.11 Produkcja masy włóknistej"]
["17.12 Produkcja papieru i tektury"]
["17.21 Produkcja papieru falistego i tektury falistej oraz opakowań z papieru i tektury"]
["17.22 Produkcja artykułów gospodarstwa domowego, toaletowych i sanitarnych"]
["17.23 Produkcja artykułów piśmiennych "]
["17.24 Produkcja tapet"]
["17.29 Produkcja pozostałych wyrobów z papieru i tektury"]
["18.11 Drukowanie gazet"]
["18.12 Pozostałe drukowanie "]
["18.13 Działalność usługowa związana z przygotowywaniem do druku "]
["18.14 Introligatorstwoi podobne usługi "]
["18.20 Reprodukcja zapisanych nośników informacji"]
["19.10 Wytwarzanie i przetwarzanie koksu"]
["19.20 Wytwarzanie i przetwarzanie produktów rafinacji ropy naftowej"]
["20.11 Produkcja gazów technicznych"]
["20.12 Produkcja barwników i pigmentów"]
["20.13 Produkcja pozostałych podstawowych chemikaliów nieorganicznych"]
["20.14 Produkcja pozostałych podstawowych chemikaliów organicznych"]
["20.15 Produkcja nawozów i związków azotowych"]
["20.16 Produkcja tworzyw sztucznych w formach podstawowych"]
["20.17 Produkcja kauczuku syntetycznego w formach podstawowych"]
["20.20 Produkcja pestycydów i pozostałych środków agrochemicznych"]
["20.30 Produkcja farb, lakierów i podobnych powłok, farb drukarskich i mas uszczelniających"]
["20.41 Produkcja mydła i detergentów, środków myjących i czyszczących"]
["20.42 Produkcja wyrobów kosmetycznych i toaletowych"]
["20.51 Produkcja materiałów wybuchowych"]
["20.52 Produkcja klejów"]
["20.53 Produkcja olejków eterycznych"]
["20.59 Produkcja pozostałych wyrobów chemicznych, gdzie indziej niesklasyfikowana"]
["20.60 Produkcja włókien chemicznych"]
["21.10 Produkcja podstawowych substancji farmaceutycznych"]
["21.20 Produkcja leków i pozostałych wyrobów farmaceutycznych"]
["22.11 Produkcja opon i dętek z gumy; bieżnikowanie i regenerowanie opon z gumy "]
["22.19 Produkcja pozostałych wyrobów z gumy "]
["22.21 Produkcja płyt, arkuszy, rur i kształtowników z tworzyw sztucznych"]
["22.22 Produkcja opakowań z tworzyw sztucznych"]
["22.23 Produkcja wyrobów dla budownictwaz tworzyw sztucznych"]
["22.29 Produkcja pozostałych wyrobów z tworzyw sztucznych"]
["23.11 Produkcja szkła płaskiego"]
["23.12 Kształtowanie i obróbka szkła płaskiego"]
["23.13 Produkcja szkła gospodarczego"]
["23.14 Produkcja włókien szklanych"]
["23.19 Produkcja i obróbka pozostałego szkła, włączając szkło techniczne"]
["23.20 Produkcja wyrobów ogniotrwałych"]
["23.31 Produkcja ceramicznych kafli i płytek"]
["23.32 Produkcja cegieł, dachówek i materiałów budowlanych, z wypalanej gliny"]
["23.41 Produkcja ceramicznych wyrobów stołowych i ozdobnych"]
["23.42 Produkcja ceramicznych wyrobów sanitarnych "]
["23.43 Produkcja ceramicznych izolatorów i osłon izolacyjnych"]
["23.44 Produkcja pozostałych technicznych wyrobów ceramicznych"]
["23.49 Produkcja pozostałych wyrobów ceramicznych"]
["23.51 Produkcja cementu"]
["23.52 Produkcja wapna i gipsu"]
["23.61 Produkcja wyrobów budowlanych z betonu"]
["23.62 Produkcja wyrobów budowlanych z gipsu"]
["23.63 Produkcja masy betonowej prefabrykowanej"]
["23.64 Produkcja zaprawy murarskiej"]
["23.65 Produkcja cementu wzmocnionego włóknem "]
["23.69 Produkcja pozostałych wyrobów z betonu, gipsu i cementu "]
["23.70 Cięcie, formowanie i wykańczanie kamienia"]
["23.91 Produkcja wyrobów ściernych"]
["23.99 Produkcja pozostałych wyrobów z mineralnych surowców niemetalicznych, gdzie indziej niesklasyfikowana"]
["24.10 Produkcja surówki, żelazostopów, żeliwa i stali oraz wyrobów hutniczych"]
["24.20 Produkcja rur, przewodów, kształtowników zamkniętych i łączników, ze stali"]
["24.31 Produkcja prętów ciągnionych na zimno "]
["24.32 Produkcja wyrobów płaskich walcowanych na zimno"]
["24.33 Produkcja wyrobów formowanych na zimno"]
["24.34 Produkcja drutu"]
["24.41 Produkcja metali szlachetnych"]
["24.42 Produkcja aluminium hutniczego"]
["24.42 Produkcja wyrobów z aluminium i stopów aluminium"]
["24.43 Produkcja ołowiu, cynku i cyny"]
["24.44 Produkcja miedzi"]
["24.45 Produkcja pozostałych metali nieżelaznych"]
["24.46 Wytwarzanie paliw jądrowych"]
["24.51 Odlewnictwo żeliwa"]
["24.52 Odlewnictwo staliwa"]
["24.53 Odlewnictwo metali lekkich"]
["24.54 Odlewnictwo miedzi i stopów miedzi"]
["24.54 Odlewnictwo pozostałych metali nieżelaznych, gdzie indziej niesklasyfikowane"]
["25.11 Produkcja konstrukcji metalowych i ich części"]
["25.12 Produkcja metalowych elementów stolarki budowlanej"]
["25.21 Produkcja grzejników i kotłów centralnego ogrzewania"]
["25.29 Produkcja pozostałych zbiorników, cystern i pojemników metalowych"]
["25.30 Produkcja wytwornic pary, z wyłączeniem kotłów do centralnego ogrzewania gorącą wodą"]
["25.40 Produkcja broni i amunicji"]
["25.50 Kucie, prasowanie, wytłaczanie i walcowanie metali; metalurgia proszków"]
["25.61 Obróbka metali i nakładanie powłok na metale"]
["25.62 Obróbka mechaniczna elementów metalowych"]
["25.71 Produkcja wyrobów nożowniczych i sztućców"]
["25.72 Produkcja zamków i zawiasów"]
["25.73 Produkcja narzędzi"]
["25.91 Produkcja pojemników metalowych"]
["25.92 Produkcja opakowań z metali "]
["25.93 Produkcja wyrobów z drutu, łańcuchów i sprężyn "]
["25.94 Produkcja złączy i śrub"]
["25.99 Produkcja pozostałych gotowych wyrobów metalowych, gdzie indziej niesklasyfikowana"]
["26.11 Produkcja elementów elektronicznych"]
["26.12 Produkcja elektronicznych obwodów drukowanych"]
["26.20 Produkcja komputerów i urządzeń peryferyjnych"]
["26.30 Produkcja sprzętu (tele)komunikacyjnego "]
["26.40 Produkcja elektronicznego sprzętu powszechnego użytku "]
["26.51 Produkcja instrumentów i przyrządów pomiarowych, kontrolnych i nawigacyjnych"]
["26.52 Produkcja zegarków i zegarów"]
["26.60 Produkcja urządzeń napromieniowujących,  sprzętu elektromedycznego i elektroterapeutycznego"]
["26.70 Produkcja instrumentów optycznych i sprzętu fotograficznego"]
["26.80 Produkcjamagnetycznych i optycznych niezapisanych nośników informacji"]
["27.11 Produkcja elektrycznych silników, prądnic i transformatorów"]
["27.12 Produkcja aparatury rozdzielczeji sterowniczej energii elektrycznej"]
["27.20 Produkcja baterii i akumulatorów"]
["27.31 Produkcja kabli światłowodowych"]
["27.32 Produkcja pozostałych elektronicznych i elektrycznych przewodów i kabli"]
["27.33 Produkcja sprzętu instalacyjnego"]
["27.40 Produkcja elektrycznego sprzętu oświetleniowego"]
["27.51 Produkcja elektrycznego sprzętu gospodarstwa domowego"]
["27.52 Produkcja nieelektrycznego sprzętu gospodarstwa domowego"]
["27.90 Produkcja pozostałego sprzętu elektrycznego"]
["28.11 Produkcja silnikówi turbin, z wyłączeniem silników lotniczych, samochodowych i motocyklowych"]
["28.12 Produkcja sprzętui wyposażenia do napędu hydraulicznego i pneumatycznego "]
["28.13 Produkcja pozostałych pomp i sprężarek"]
["28.14 Produkcja pozostałych kurków i zaworów"]
["28.15 Produkcja łożysk, kół zębatych, przekładni zębatych i elementów napędowych"]
["28.21 Produkcja pieców, palenisk i palników piecowych"]
["28.22 Produkcja urządzeń dźwigowych i chwytaków"]
["28.23 Produkcja maszyn i sprzętu biurowego,  z wyłączeniem komputerów i urządzeń peryferyjnych"]
["28.24 Produkcja narzędzi ręcznych mechanicznych"]
["28.25 Produkcja przemysłowych urządzeń chłodniczych i wentylacyjnych"]
["28.29 Produkcja pozostałych maszyn ogólnego przeznaczenia, gdzie indziej niesklasyfikowana"]
["28.30 Produkcja maszyn dla rolnictwa i leśnictwa"]
["28.41 Produkcja maszyn do obróbki metalu"]
["28.49 Produkcja pozostałych narzędzi mechanicznych"]
["28.91 Produkcja maszyn dla metalurgii"]
["28.92 Produkcja maszyn dla górnictwa i do wydobywania oraz budownictwa"]
["28.93 Produkcja maszyn stosowanych w przetwórstwie żywności, tytoniu i produkcji napojów "]
["28.94 Produkcja maszyn dla przemysłu tekstylnego, odzieżowegoi skórzanego"]
["28.95 Produkcja maszyn dla przemysłu papierniczego"]
["28.96 Produkcja maszyn do obróbki gumy lub tworzyw sztucznych oraz wytwarzania wyrobów z tych materiałów"]
["28.99 Produkcja pozostałych maszyn specjalnego przeznaczenia, gdzie indziej niesklasyfikowana"]
["29.10 Produkcja autobusów"]
["29.10 Produkcja pojazdów samochodowych przeznaczonych do przewozu towarów "]
["29.10 Produkcja pozostałych pojazdów samochodowych, z wyłączeniem motocykli"]
["29.10 Produkcja samochodów osobowych "]
["29.10 Produkcja silników do pojazdów  samochodowych (z wyłączeniem motocykli) oraz do ciągników rolniczych  "]
["29.20 Produkcja nadwozi do pojazdów silnikowych; produkcja przyczep i naczep"]
["29.31 Produkcja wyposażenia elektrycznego i elektronicznego do pojazdów silnikowych"]
["29.32 Produkcja pozostałych części i akcesoriów do pojazdów silnikowych, z wyłączeniem motocykli"]
["30.11 Produkcja statków i konstrukcji pływających"]
["30.12 Produkcja łodzi wycieczkowych i sportowych"]
["30.20 Produkcja lokomotyw kolejowych oraz taboru szynowego"]
["30.30 Produkcja statków powietrznych, statków kosmicznych i podobnych maszyn"]
["30.40 Produkcja wojskowych pojazdów bojowych"]
["30.91 Produkcja motocykli"]
["30.92 Produkcja rowerów i wózków inwalidzkich"]
["30.99 Produkcja pozostałego sprzętu transportowego, gdzie indziej niesklasyfikowana"]
["31.01 Produkcja mebli biurowych i sklepowych"]
["31.02 Produkcja mebli kuchennych"]
["31.03 Produkcja materaców"]
["31.09 Produkcja pozostałych mebli"]
["32.11 Produkcja monet"]
["32.12 Produkcja wyrobów jubilerskich i podobnych"]
["32.13 Produkcja sztucznej biżuterii i wyrobów podobnych"]
["32.20 Produkcja instrumentów muzycznych"]
["32.30 Produkcja sprzętu sportowego"]
["32.40 Produkcja gier i zabawek"]
["32.50 Produkcja urządzeń, instrumentów oraz wyrobów medycznych, włączając dentystyczne"]
["32.91 Produkcja mioteł, szczotek i pędzli"]
["32.99 Produkcja pozostałych wyrobów, gdzie indziej niesklasyfikowana"]
["33.11 Naprawa i konserwacja metalowych wyrobów gotowych "]
["33.12 Naprawa i konserwacja maszyn"]
["33.13 Naprawa i konserwacja urządzeń elektronicznych i optycznych"]
["33.14 Naprawa i konserwacja urządzeń elektrycznych"]
["33.15 Naprawa i konserwacja statków i łodzi"]
["33.16 Naprawa i konserwacja statków powietrznych i statków kosmicznych"]
["33.17 Naprawa i konserwacja pozostałego sprzętu transportowego"]
["33.19 Naprawa i konserwacja pozostałego sprzętu i wyposażenia"]
["33.20 Instalowanie maszyn przemysłowych, sprzętu i wyposażenia"]
["35.11 Wytwarzanie energii elektrycznej"]
["35.12 Przesyłanie energii elektrycznej"]
["35.13 Dystrybucja energii elektrycznej"]
["35.14 Handel energią elektryczną"]
["35.21 Wytwarzanie paliw gazowych"]
["35.22 Dystrybucja paliw gazowych w systemie sieciowym"]
["35.23 Handel paliwami gazowymi w systemie sieciowym"]
["35.30 Wytwarzanie i zaopatrywanie w parę wodną, gorącą wodęi powietrze do układów klimatyzacyjnych"]
["36.00 Pobór, uzdatnianie i dostarczanie wody"]
["37.00 Odprowadzanie i oczyszczanie ścieków"]
["38.11 Zbieranie odpadów innych niż niebezpieczne"]
["38.12 Zbieranie odpadów niebezpiecznych"]
["38.21 Obróbka i usuwanie odpadów innych niż niebezpieczne"]
["38.22 Przetwarzanie i unieszkodliwianie odpadów niebezpiecznych"]
["38.31 Demontaż wyrobów zużytych"]
["38.32 Odzysk surowców z materiałów segregowanych "]
["39.00 Działalność związana z rekultywacją i pozostała działalność usługowa związana z gospodarką odpadami"]
["41.10 Realizacja projektów budowlanych związanych ze wznoszeniem budynków"]
["41.20 Roboty budowlane związane ze wznoszeniem budynków mieszkalnych i niemieszkalnych"]
["42.11 Roboty związane z budową dróg i autostrad"]
["42.12 Roboty związane z budową dróg szynowych i kolei podziemnej"]
["42.13 Roboty związane z budową mostów i tuneli"]
["42.21 Roboty związane z budową rurociągów przesyłowych i sieci rozdzielczych"]
["42.22 Roboty związane z budową linii telekomunikacyjnych i elektroenergetycznych "]
["42.91 Roboty związane z budową obiektów inżynierii wodnej "]
["42.99 Roboty związane z budową pozostałych obiektów inżynierii lądowej i wodnej, gdzie indziej niesklasyfikowane"]
["43.11 Rozbiórka i burzenie obiektów budowlanych"]
["43.12 Przygotowanie terenu pod budowę"]
["43.13 Wykonywanie wykopów i wierceń geologiczno-inżynierskich"]
["43.21 Wykonywanie instalacji elektrycznych"]
["43.22 Wykonywanie instalacji wodno-kanalizacyjnych, cieplnych, gazowych i klimatyzacyjnych"]
["43.29 Wykonywanie pozostałych instalacji budowlanych"]
["43.31 Tynkowanie"]
["43.32 Zakładanie stolarki budowlanej"]
["43.33 Posadzkarstwo; tapetowanie i oblicowywanie ścian"]
["43.34 Malowanie i szklenie "]
["43.39 Wykonywanie pozostałych robót budowlanych wykończeniowych"]
["43.91 Wykonywanie konstrukcji i pokryć dachowych"]
["43.99 Pozostałe specjalistyczne roboty budowlane, gdzie indziej niesklasyfikowane "]
["45.11 Sprzedaż hurtowa i detaliczna samochodów osobowych i furgonetek"]
["45.19 Sprzedaż hurtowa i detaliczna pozostałych pojazdów samochodowych, z wyłączeniem motocykli "]
["45.20 Konserwacja i naprawa pojazdów samochodowych, z wyłączeniem motocykli"]
["45.31 Sprzedaż hurtowa części i akcesoriów do pojazdów samochodowych, z wyłączeniem motocykli"]
["45.32 Sprzedaż detaliczna części i akcesoriów do pojazdów samochodowych, z wyłączeniem motocykli"]
["45.40 Sprzedaż hurtowa i detaliczna motocykli, ich naprawa i konserwacja oraz sprzedaż hurtowa i detaliczna części i akcesoriów do nich"]
["46.11 Działalność agentów zajmujących się sprzedażą płodów rolnych, żywych zwierząt, surowców dla przemysłu tekstylnego i półproduktów"]
["46.12 Działalność agentów zajmujących się sprzedażą paliw, rud, metali i chemikaliów przemysłowych"]
["46.13 Działalność agentów zajmujących się sprzedażą drewna i materiałów budowlanych"]
["46.14 Działalność agentów zajmujących się sprzedażą maszyn, urządzeń przemysłowych, statków i samolotów"]
["46.15 Działalność agentów zajmujących się sprzedażą mebli, artykułów gospodarstwa domowego i drobnych wyrobów metalowych"]
["46.16 Działalność agentów zajmujących się sprzedażą wyrobów tekstylnych, odzieży, wyrobów futrzarskich, obuwia i artykułów skórzanych"]
["46.17 Działalność agentów zajmujących się sprzedażą żywności, napojów i wyrobów tytoniowych "]
["46.18 Działalność agentów specjalizujących się w sprzedaży pozostałych określonych towarów "]
["46.19 Działalność agentów zajmujących się sprzedażą towarów różnego rodzaju"]
["46.21 Sprzedaż hurtowa zboża, nieprzetworzonego tytoniu, nasion i pasz dla zwierząt"]
["46.22 Sprzedaż hurtowa kwiatów i roślin"]
["46.23 Sprzedaż hurtowa żywych zwierząt"]
["46.24 Sprzedaż hurtowa skór "]
["46.31 Sprzedaż hurtowa owoców i warzyw"]
["46.32 Sprzedaż hurtowa mięsa i wyrobów z mięsa"]
["46.33 Sprzedaż hurtowa mleka, wyrobów mleczarskich, jaj, olejów i tłuszczów jadalnych"]
["46.34 Sprzedaż hurtowa napojów alkoholowych"]
["46.34 Sprzedaż hurtowa napojów bezalkoholowych"]
["46.35 Sprzedaż hurtowa wyrobów tytoniowych"]
["46.36 Sprzedaż hurtowa cukru, czekolady, wyrobów cukierniczych i piekarskich"]
["46.37 Sprzedaż hurtowa herbaty, kawy, kakao i przypraw"]
["46.38 Sprzedaż hurtowa pozostałej żywności, włączając ryby, skorupiaki i mięczaki "]
["46.39 Sprzedaż hurtowa niewyspecjalizowana żywności, napojów i wyrobów tytoniowych"]
["46.41 Sprzedaż hurtowa wyrobów tekstylnych"]
["46.42 Sprzedaż hurtowa odzieży i obuwia"]
["46.43 Sprzedaż hurtowa elektrycznych artykułów użytku domowego "]
["46.44 Sprzedaż hurtowa wyrobów porcelanowych, ceramicznych i szklanych oraz środków czyszczących"]
["46.45 Sprzedaż hurtowa perfum i kosmetyków"]
["46.46 Sprzedaż hurtowa wyrobów farmaceutycznych i medycznych"]
["46.47 Sprzedaż hurtowa mebli, dywanów i sprzętu oświetleniowego"]
["46.48 Sprzedaż hurtowa zegarków, zegarów i biżuterii"]
["46.49 Sprzedaż hurtowa pozostałych artykułów użytku domowego"]
["46.51 Sprzedaż hurtowa komputerów, urządzeń peryferyjnych i oprogramowania"]
["46.52 Sprzedaż hurtowa sprzętu elektronicznego i telekomunikacyjnego oraz części do niego"]
["46.61 Sprzedaż hurtowa maszyn i urządzeń rolniczych oraz dodatkowego wyposażenia"]
["46.62 Sprzedaż hurtowa obrabiarek"]
["46.63 Sprzedaż hurtowa maszyn wykorzystywanych w górnictwie, budownictwie oraz inżynierii lądowej i wodnej"]
["46.64 Sprzedaż hurtowa maszyn dla przemysłu tekstylnego oraz maszyn do szycia i maszyn dziewiarskich "]
["46.65 Sprzedaż hurtowa mebli biurowych"]
["46.66 Sprzedaż hurtowa pozostałych maszyn i urządzeń biurowych"]
["46.69 Sprzedaż hurtowa pozostałych maszyn i urządzeń "]
["46.71 Sprzedaż hurtowa paliw i produktów pochodnych"]
["46.72 Sprzedaż hurtowa metali i rud metali"]
["46.73 Sprzedaż hurtowa drewna, materiałów budowlanych i wyposażenia sanitarnego"]
["46.74 Sprzedaż hurtowa wyrobów metalowych oraz sprzętui dodatkowego wyposażenia hydraulicznego i grzejnego"]
["46.75 Sprzedaż hurtowa wyrobów chemicznych"]
["46.76 Sprzedaż hurtowa pozostałych półproduktów "]
["46.77 Sprzedaż hurtowa odpadów i złomu"]
["46.90 Sprzedaż hurtowa niewyspecjalizowana"]
["47.11 Sprzedaż detaliczna prowadzona w niewyspecjalizowanych sklepach z przewagą żywności, napojów i wyrobów tytoniowych"]
["47.19 Pozostała sprzedaż detaliczna prowadzona w niewyspecjalizowanych sklepach"]
["47.21 Sprzedaż detaliczna owoców i warzyw prowadzona w wyspecjalizowanych sklepach"]
["47.22 Sprzedaż detaliczna mięsa i wyrobów z mięsa prowadzona w wyspecjalizowanych sklepach"]
["47.23 Sprzedaż detaliczna ryb, skorupiaków i mięczaków prowadzona w wyspecjalizowanych sklepach"]
["47.24 Sprzedaż detaliczna pieczywa, ciast, wyrobów ciastkarskich i cukierniczych prowadzona w wyspecjalizowanych sklepach"]
["47.25 Sprzedaż detaliczna napojów alkoholowych i bezalkoholowych prowadzona w wyspecjalizowanych sklepach"]
["47.26 Sprzedaż detaliczna wyrobów tytoniowych prowadzona w wyspecjalizowanych sklepach"]
["47.29 Sprzedaż detaliczna pozostałej żywności prowadzona w wyspecjalizowanych sklepach"]
["47.30 Sprzedaż detaliczna paliw do pojazdów silnikowych na stacjach paliw"]
["47.41 Sprzedaż detaliczna komputerów, urządzeń peryferyjnych i oprogramowania prowadzona w wyspecjalizowanych sklepach"]
["47.42 Sprzedaż detaliczna sprzętu telekomunikacyjnego prowadzona w wyspecjalizowanych sklepach"]
["47.43 Sprzedaż detaliczna sprzętu audiowizualnego prowadzona w wyspecjalizowanych sklepach"]
["47.51 Sprzedaż detaliczna wyrobów tekstylnych prowadzona w wyspecjalizowanych sklepach"]
["47.52 Sprzedaż detaliczna drobnych wyrobów metalowych, farb i szkła prowadzona w wyspecjalizowanych sklepach"]
["47.53 Sprzedaż detaliczna dywanów, chodników i innych pokryć podłogowych oraz pokryć ściennych prowadzona w wyspecjalizowanych sklepach"]
["47.54 Sprzedaż detaliczna elektrycznego sprzętu gospodarstwa domowego prowadzona w wyspecjalizowanych sklepach"]
["47.59 Sprzedaż detaliczna mebli, sprzętu oświetleniowego i pozostałych artykułów użytku domowego prowadzona w wyspecjalizowanych sklepach"]
["47.61 Sprzedaż detaliczna książek prowadzona w wyspecjalizowanych sklepach"]
["47.62 Sprzedaż detaliczna gazet i artykułów piśmiennych prowadzona w wyspecjalizowanych sklepach"]
["47.63 Sprzedaż detaliczna nagrań dźwiękowych i audiowizualnych prowadzona w wyspecjalizowanych sklepach"]
["47.64 Sprzedaż detaliczna sprzętu sportowego prowadzona w wyspecjalizowanych sklepach"]
["47.65 Sprzedaż detaliczna gier i zabawek prowadzona w wyspecjalizowanych sklepach"]
["47.71 Sprzedaż detaliczna odzieży prowadzona w wyspecjalizowanych sklepach"]
["47.72 Sprzedaż detaliczna obuwia i wyrobów skórzanych prowadzona w wyspecjalizowanych sklepach"]
["47.73 Sprzedaż detaliczna wyrobów farmaceutycznych prowadzona w wyspecjalizowanych sklepach"]
["47.74 Sprzedaż detaliczna wyrobów medycznych, włączając ortopedyczne, prowadzona w wyspecjalizowanych sklepach"]
["47.75 Sprzedaż detaliczna kosmetyków i artykułów toaletowych prowadzona w wyspecjalizowanych sklepach"]
["47.76 Sprzedaż detaliczna kwiatów, roślin, nasion, nawozów, żywych zwierząt domowych, karmy dla zwierząt domowych prowadzona w wyspecjalizowanych sklepach"]
["47.77 Sprzedaż detaliczna zegarków, zegarów i biżuterii prowadzona w wyspecjalizowanych sklepach"]
["47.78 Sprzedaż detaliczna pozostałych nowych wyrobów prowadzona w wyspecjalizowanych sklepach"]
["47.79 Sprzedaż detaliczna artykułów używanych prowadzona w wyspecjalizowanych sklepach"]
["47.81 Sprzedaż detaliczna żywności, napojów i wyrobów tytoniowych prowadzona na straganach i targowiskach"]
["47.82 Sprzedaż detaliczna wyrobów tekstylnych, odzieży i obuwia prowadzona na straganach i targowiskach"]
["47.89 Sprzedaż detaliczna pozostałych wyrobów prowadzona na straganach i targowiskach"]
["47.91 Sprzedaż detaliczna prowadzona przez domy sprzedaży wysyłkowej lub Internet"]
["47.99 Pozostała sprzedaż detaliczna prowadzona poza siecią sklepową, straganami i targowiskami"]
["49.10 Transport kolejowy pasażerski międzymiastowy"]
["49.20 Transport kolejowy towarów"]
["49.31 Transport lądowy pasażerski, miejskii podmiejski "]
["49.32 Działalność taksówek osobowych "]
["49.39 Pozostały transport lądowy pasażerski, gdzie indziej niesklasyfikowany "]
["49.41 Transport drogowy towarów "]
["49.42 Działalność usługowa związana z przeprowadzkami"]
["49.50 Transport rurociągami paliw gazowych"]
["49.50 Transport rurociągowy pozostałych towarów"]
["50.10 Transport morski i przybrzeżny pasażerski"]
["50.20 Transport morski i przybrzeżny towarów"]
["50.30 Transport wodny śródlądowy pasażerski"]
["50.40 Transport wodny śródlądowy towarów"]
["51.10 Transport lotniczy pasażerski"]
["51.21 Transport lotniczy towarów"]
["51.22 Transport kosmiczny"]
["52.10 Magazynowanie i przechowywanie paliw gazowych"]
["52.10 Magazynowanie i przechowywanie pozostałych towarów"]
["52.21 Działalność usługowa wspomagająca transport lądowy"]
["52.22 Działalność usługowa wspomagająca transport morski"]
["52.22 Działalność usługowa wspomagająca transport śródlądowy"]
["52.23 Działalność usługowa wspomagająca transport lotniczy"]
["52.24 Przeładunek towarów"]
["52.24 Przeładunek towarów w portach śródlądowych"]
["52.24 Przeładunek towarów w pozostałych punktach przeładunkowych"]
["52.29 Działalność morskich agencji transportowych "]
["52.29 Działalność pozostałych agencji transportowych "]
["52.29 Działalność śródlądowych agencji transportowych"]
["53.10 Działalność pocztowa objęta obowiązkiem świadczenia usług powszechnych (operatora publicznego)"]
["53.20 Pozostała działalność pocztowa i kurierska"]
["55.10 Hotele i podobne obiekty zakwaterowania"]
["55.20 Obiekty noclegowe turystyczne i miejsca krótkotrwałego zakwaterowania "]
["55.30 Pola kempingowe (włączając pola dla pojazdów kempingowych) i pola namiotowe"]
["55.90 Pozostałe zakwaterowanie "]
["56.10 Restauracje i inne stałe placówki gastronomiczne"]
["56.10 Ruchome placówki gastronomiczne"]
["56.21 Przygotowywanie i dostarczanie żywności dla odbiorców zewnętrznych (katering) "]
["56.29 Pozostała usługowa działalność gastronomiczna"]
["56.30 Przygotowywanie i podawanie napojów"]
["58.11 Wydawanie książek"]
["58.12 Wydawanie wykazów oraz list (np. adresowych, telefonicznych"]
["58.13 Wydawanie gazet"]
["58.14 Wydawanie czasopism i pozostałych periodyków"]
["58.19 Pozostała działalność wydawnicza "]
["58.21 Działalność wydawnicza w zakresie gier komputerowych"]
["58.29 Działalność wydawnicza w zakresie pozostałego oprogramowania"]
["59.11 Działalność związana z produkcją filmów, nagrań wideo i programów telewizyjnych"]
["59.12 Działalność postprodukcyjna związana z filmami, nagraniami wideo i programami telewizyjnymi"]
["59.13 Działalność związana z dystrybucją filmów, nagrań wideo i programów telewizyjnych"]
["59.14 Działalność związana z projekcją filmów "]
["59.20 Działalność w zakresie nagrań dźwiękowych i muzycznych"]
["60.10 Nadawanie programów radiofonicznych"]
["60.20 Nadawanie programów telewizyjnych ogólnodostępnych i abonamentowych"]
["61.10 Działalność w zakresie telekomunikacji przewodowej"]
["61.20 Działalność w zakresie telekomunikacji bezprzewodowej,  z wyłączeniem telekomunikacji satelitarnej"]
["61.30 Działalność w zakresie telekomunikacji satelitarnej"]
["61.90 Działalność w zakresie pozostałej telekomunikacji "]
["62.01 Działalność związana z oprogramowaniem"]
["62.02 Działalność związana z doradztwem w zakresie informatyki"]
["62.03 Działalność związana z zarządzaniem urządzeniami informatycznymi"]
["62.09 Pozostała działalność usługowa w zakresie technologii informatycznych "]
["63.11 Przetwarzanie danych; zarządzanie stronami internetowymi (hosting) i podobna działalność "]
["63.12 Działalność portali internetowych"]
["63.91 Działalność agencji informacyjnych"]
["63.99 Pozostała działalność usługowa w zakresie informacji, gdzie indziej niesklasyfikowana"]
["64.11 Działalność banku centralnego"]
["64.19 Pozostałe pośrednictwo pieniężne "]
["64.20 Działalność holdingów finansowych"]
["64.30 Działalność trustów, funduszów i podobnych instytucji finansowych "]
["64.91 Leasing finansowy"]
["64.92 Pozostałe formy udzielania kredytów "]
["64.99 Pozostała finansowa działalność usługowa, gdzie indziej niesklasyfikowana, z wyłączeniem ubezpieczeń i funduszów emerytalnych"]
["65.11 Ubezpieczenia na życie"]
["65.12 Pozostałe ubezpieczenia osobowe oraz ubezpieczenia majątkowe"]
["65.20 Reasekuracja"]
["65.30 Fundusze emerytalne"]
["66.11 Zarządzanie rynkami finansowymi"]
["66.12 Działalność maklerska związana z rynkiem papierów wartościowych i towarów giełdowych "]
["66.19 Pozostała działalność wspomagająca usługi finansowe, z wyłączeniem ubezpieczeń i funduszów emerytalnych"]
["66.21 Działalność związana z oceną ryzyka i szacowaniem poniesionych strat"]
["66.22 Działalność agentów i brokerów ubezpieczeniowych"]
["66.29 Pozostała działalność wspomagająca  ubezpieczenia i fundusze emerytalne "]
["66.30 Działalność związana z zarządzaniem funduszami"]
["68.10 Kupno i sprzedaż nieruchomości na własny rachunek"]
["68.20 Wynajem i zarządzanie nieruchomościami własnymi lub dzierżawionymi "]
["68.31 Pośrednictwo w obrocie nieruchomościami"]
["68.32 Zarządzanie nieruchomościami wykonywane na zlecenie"]
["69.10 Działalność prawnicza"]
["69.20 Działalność rachunkowo-księgowa; doradztwo podatkowe"]
["70.10 Działalność firm centralnych (head offices) i holdingów, z wyłączeniem holdingów finansowych "]
["70.21 Stosunki międzyludzkie (public relations) i komunikacja"]
["70.22 Pozostałe doradztwo w zakresie prowadzenia działalności gospodarczej i zarządzania"]
["71.11 Działalność w zakresie architektury"]
["71.12 Działalność w zakresie inżynierii i związane z nią doradztwo techniczne"]
["71.20 Badania i analizy związane z jakością żywności"]
["71.20 Pozostałe badania i analizy techniczne"]
["72.11 Badania naukowe i prace rozwojowe w dziedzinie biotechnologii"]
["72.19 Badania naukowe i prace rozwojowe w dziedzinie pozostałych nauk przyrodniczych i technicznych"]
["72.20 Badania naukowe i prace rozwojowe w dziedzinie nauk społecznych i humanistycznych"]
["73.11 Działalność agencji reklamowych"]
["73.12 Pośrednictwo w sprzedaży czasu i miejsca na cele reklamowe w pozostałych mediach"]
["73.12 Pośrednictwo w sprzedaży czasu i miejsca na cele reklamowe w radio i telewizji"]
["73.12 Pośrednictwo w sprzedaży miejsca na cele reklamowe w mediach drukowanych"]
["73.12 Pośrednictwo w sprzedaży miejsca na cele reklamowe w mediach elektronicznych (Internet)"]
["73.20 Badanie rynku i opinii publicznej"]
["74.10 Działalność w zakresie specjalistycznego projektowania"]
["74.20 Działalność fotograficzna"]
["74.30 Działalność związana z tłumaczeniami "]
["74.90 Pozostała działalność profesjonalna, naukowa i techniczna, gdzie indziej niesklasyfikowana"]
["75.00 Działalność weterynaryjna"]
["77.11 Wynajem i dzierżawa samochodów osobowych i furgonetek"]
["77.12 Wynajem i dzierżawa pozostałych pojazdów samochodowych, z wyłączeniem motocykli"]
["77.21 Wypożyczanie i dzierżawa sprzętu rekreacyjnego i sportowego "]
["77.22 Wypożyczanie kaset wideo, płyt CD, DVD itp. "]
["77.29 Wypożyczanie i dzierżawa pozostałych artykułów użytku osobistego i domowego"]
["77.31 Wynajem i dzierżawa maszyn i urządzeń rolniczych"]
["77.32 Wynajem i dzierżawa maszyn i urządzeń budowlanych "]
["77.33 Wynajem i dzierżawa maszyn i urządzeń biurowych, włączając komputery"]
["77.34 Wynajem i dzierżawa środków transportu wodnego"]
["77.35 Wynajem i dzierżawa środków transportu lotniczego"]
["77.39 Wynajem i dzierżawa pozostałych maszyn, urządzeń oraz dóbr materialnych, gdzie indziej niesklasyfikowane"]
["77.40 Dzierżawa własności intelektualnej i podobnych produktów, z wyłączeniem prac chronionych prawem autorskim "]
["78.10 Działalność związana z wyszukiwaniem miejsc pracy i pozyskiwaniem pracowników"]
["78.20 Działalność agencji pracy tymczasowej "]
["78.30 Pozostała działalność związana z udostępnianiem pracowników "]
["79.11 Działalność agentów turystycznych "]
["79.11 Działalność pośredników turystycznych"]
["79.12 Działalność organizatorów turystyki"]
["79.90 Działalność pilotów wycieczek i przewodników turystycznych"]
["79.90 Działalność w zakresie informacji turystycznej"]
["79.90 Pozostała działalność usługowa w zakresie rezerwacji, gdzie indziej niesklasyfikowana "]
["80.10 Działalność ochroniarska, z wyłączeniem obsługi systemów bezpieczeństwa "]
["80.20 Działalność ochroniarska w zakresie obsługi systemów bezpieczeństwa"]
["80.30 Działalność detektywistyczna"]
["81.10 Działalność pomocnicza związana z utrzymaniem porządku w budynkach "]
["81.21 Niespecjalistyczne sprzątanie budynków i obiektów przemysłowych"]
["81.22 Specjalistyczne sprzątanie budynków i obiektów przemysłowych"]
["81.29 Pozostałe sprzątanie "]
["81.30 Działalność usługowa związana z zagospodarowaniem terenów zieleni"]
["82.11 Działalność usługowa związana z administracyjną obsługą biura "]
["82.19 Wykonywanie fotokopii, przygotowywanie dokumentów i pozostała specjalistyczna działalność wspomagająca prowadzenie biura"]
["82.20 Działalność centrów telefonicznych (call center)"]
["82.30 Działalność związana z organizacją targów, wystaw i kongresów "]
["82.91 Działalność świadczona przez agencje inkasa i biura kredytowe "]
["82.92 Działalność związana z pakowaniem"]
["82.99 Pozostała działalność wspomagająca  prowadzenie działalności gospodarczej, gdzie indziej niesklasyfikowana "]
["84.11 Kierowanie podstawowymi rodzajami działalności publicznej"]
["84.12 Kierowanie w zakresie działalności związanej z ochroną zdrowia, edukacją, kulturą oraz pozostałymi usługami społecznymi, z wyłączeniem zabezpieczeń społecznych "]
["84.13 Kierowanie w zakresie efektywności gospodarowania"]
["84.21 Sprawy zagraniczne"]
["84.22 Obrona narodowa"]
["84.23 Wymiar sprawiedliwości"]
["84.24 Bezpieczeństwo państwa, porządek i bezpieczeństwo publiczne"]
["84.25 Ochrona przeciwpożarowa"]
["84.30 Obowiązkowe zabezpieczenia społeczne"]
["85.10 Wychowanie przedszkolne "]
["85.20 Szkoły podstawowe"]
["85.31 Gimnazja "]
["85.31 Licea ogólnokształcące"]
["85.31 Licea profilowane"]
["85.32 Szkoły specjalne przysposabiające do pracy"]
["85.32 Technika"]
["85.32 Zasadnicze szkoły zawodowe "]
["85.41 Szkoły policealne"]
["85.42 Szkoły wyższe"]
["85.42 Zakłady kształcenia nauczycieli i kolegia pracowników służb społecznych "]
["85.51 Pozaszkolne formy edukacji sportowej oraz zajęć sportowych i rekreacyjnych"]
["85.52 Pozaszkolne formy edukacji artystycznej "]
["85.53 Pozaszkolne formy edukacji  z zakresu nauki jazdy i pilotażu"]
["85.59 Nauka języków obcych"]
["85.59 Pozostałe pozaszkolne formy edukacji, gdzie indziej niesklasyfikowane"]
["85.60 Działalność wspomagająca edukację"]
["86.10 Działalność szpitali"]
["86.21 Praktyka lekarska ogólna "]
["86.22 Praktyka lekarska specjalistyczna "]
["86.23 Praktyka lekarska dentystyczna "]
["86.90 Działalność fizjoterapeutyczna"]
["86.90 Działalność paramedyczna"]
["86.90 Działalność pogotowia ratunkowego"]
["86.90 Pozostała działalność w zakresie opieki zdrowotnej, gdzie indziej niesklasyfikowana"]
["86.90 Praktyka pielęgniarek i położnych"]
["87.10 Pomoc społeczna z zakwaterowaniem zapewniająca opiekę pielęgniarską "]
["87.20 Pomoc społeczna z zakwaterowaniem dla osób z zaburzeniami psychicznymi"]
["87.30 Pomoc społeczna z zakwaterowaniem dla osób w podeszłym wieku i osób niepełnosprawnych "]
["87.90 Pozostała pomoc społeczna z zakwaterowaniem"]
["88.10 Pomoc społeczna bez zakwaterowania dla osób w podeszłym wieku i osób niepełnosprawnych "]
["88.91 Opieka dzienna nad dziećmi "]
["88.99 Pozostała pomoc społeczna bez zakwaterowania, gdzie indziej niesklasyfikowana "]
["90.01 Działalność związanaz wystawianiem przedstawień artystycznych "]
["90.02 Działalność wspomagająca wystawianie przedstawień artystycznych "]
["90.03 Artystyczna i literacka działalność twórcza "]
["90.04 Działalność obiektów kulturalnych "]
["91.01 Działalność  archiwów"]
["91.01 Działalność bibliotek"]
["91.02 Działalność muzeów"]
["91.03 Działalność historycznych miejsc i budynków oraz podobnych atrakcji turystycznych "]
["91.04 Działalność ogrodów botanicznych i zoologicznych oraz obszarów i obiektów ochrony przyrody"]
["92.00 Działalność związana z grami losowymi i zakładami wzajemnymi"]
["93.11 Działalność obiektów sportowych"]
["93.12 Działalność klubów sportowych"]
["93.13 Działalność obiektów służących poprawie kondycji fizycznej "]
["93.19 Pozostała działalność związana ze sportem"]
["93.21 Działalność wesołych miasteczek i parków rozrywki "]
["93.29 Pozostała działalność rozrywkowa i rekreacyjna"]
["94.11 Działalność organizacji komercyjnych i pracodawców"]
["94.12 Działalność organizacji profesjonalnych"]
["94.20 Działalność związków zawodowych"]
["94.91 Działalność organizacji religijnych"]
["94.92 Działalność organizacji politycznych"]
["94.99 Działalność pozostałych organizacji członkowskich, gdzie indziej niesklasyfikowana"]
["95.11 Naprawa i konserwacja komputerów i urządzeń peryferyjnych"]
["95.12 Naprawa i konserwacja sprzętu (tele)komunikacyjnego"]
["95.21 Naprawa i konserwacja elektronicznego sprzętu powszechnego użytku "]
["95.22 Naprawa i konserwacja urządzeń gospodarstwa domowego oraz sprzętu użytku domowegoi ogrodniczego"]
["95.23 Naprawa obuwia i wyrobów skórzanych"]
["95.24 Naprawa i konserwacja mebli i wyposażenia domowego"]
["95.25 Naprawa zegarów, zegarków oraz biżuterii "]
["95.29 Naprawa pozostałych artykułów użytku osobistego i domowego"]
["96.01 Pranie i czyszczenie wyrobów włókienniczych i futrzarskich"]
["96.02 Fryzjerstwo i pozostałe zabiegi kosmetyczne"]
["96.03 Pogrzeby i działalność pokrewna"]
["96.04 Działalność usługowa związana z poprawą kondycji fizycznej"]
["96.09 Pozostała działalność usługowa, gdzie indziej niesklasyfikowana "]
["97.00 Gospodarstwa domowe zatrudniające pracowników "]
["98.10 Gospodarstwa domowe produkujące wyroby na własne potrzeby "]
["98.20 Gospodarstwa domowe świadczące usługi na własne potrzeby "]
["99.00 Organizacje i zespoły eksterytorialne"]

{"sheet":"Zaangażowania kredytowe","index":1,"n_rows":39,"n_cols":25,"rows_kept":39,"merged":[[0,0,2,1],[1,3,1,23],[3,1,3,2],[3,3,3,23],[6,1,8,1],[6,2,8,2],[6,3,8,5],[6,6,8,7],[6,8,8,8],[6,9,8,10],[6,11,8,12],[6,13,6,16],[6,17,6,20],[6,21,8,21],[6,22,8,22],[6,23,8,23],[6,24,8,24],[7,13,8,15],[7,16,8,16],[7,17,8,17],[7,18,8,18],[7,19,7,20],[9,3,9,5],[9,6,9,7],[9,9,9,10],[9,11,9,12],[9,13,9,15],[10,3,10,5],[10,6,10,7],[10,9,10,10],[10,11,10,12],[10,13,10,15],[11,3,11,5],[11,6,11,7],[11,9,11,10],[11,11,11,12],[11,13,11,15],[12,3,12,5],[12,6,12,7],[12,9,12,10],[12,11,12,12],[12,13,12,15],[13,3,13,5],[13,6,13,7],[13,9,13,10],[13,11,13,12],[13,13,13,15],[14,3,14,5],[14,6,14,7],[14,9,14,10],[14,11,14,12],[14,13,14,15],[16,13,16,15],[19,1,19,2],[19,4,19,6],[19,7,19,9],[19,10,19,12],[20,1,20,2],[20,4,20,6],[20,7,20,9],[20,10,20,12],[22,0,22,24],[23,0,23,24],[24,1,24,24],[25,1,25,2],[25,4,25,5],[25,8,25,9],[25,10,25,11],[25,13,25,16],[25,17,25,19],[26,1,26,2],[26,4,26,5],[26,8,26,9],[26,10,26,11],[26,13,26,16],[26,17,26,19],[27,1,27,24],[29,1,29,2],[29,5,29,6],[29,7,29,17],[29,18,29,20],[29,21,29,23],[30,1,30,2],[30,5,30,6],[30,7,30,17],[30,18,30,20],[30,21,30,23],[34,1,34,24],[38,1,38,6],[38,21,38,24]]}
["AK2b"]
[{"$nulls":3},"ZAANGAŻOWANIA KREDYTOWE POZA BGK"]
[]
[null,"Nazwa Wnioskodawcy",null,"UTP"]
[]
[null,"Proszę podać zaanagażowania Wnioskodawcy wobec innych podmiotów niż BGK"]
[null,"Lp","Nazwa podmiotu","Tytuł długu",null,null,"Kwota ekspozycji wg umowy",null,"Waluta","Data zawarcia umowy\n(dd-mm-rrrr)",null,"Data całkowitej spłaty\n(dd-mm-rrrr)",null,"Zabezpieczenia:",{"$nulls":3},"Zaangażowanie na dzień sporządzania zestawienia",{"$nulls":3},"Łączna spłata kapitału w roku poprzedzającym rok poprzedni","Łączna spłata kapitału w roku poprzednim","Łączna spłata kapitału w roku bieżącym","Łączne spłaty kapitału w kolejnych latach kredytowania"]
[{"$nulls":13},"Rodzaj",null,null,"Kwota","bilansowe","pozabilansowe","w tym przeterminowane:"]
[{"$nulls":19},"Kapitał","Odsetki"]
[null,1,"Bank Pekao S.A.","Kredyt odnawialny",null,null,7000,null,"PLN","30-07-2012",null,"31-01-2014",null,"weksel in blanco",null,null,{"$f":"10000+10000","v":20000},7000]
[null,2,"WFOŚiGW","Pożyczka nr PB06067",null,null,2500,null,"PLN","28-09-2006",null,"30-06-2018",null,"hipoteka na nieruchomości (KW nr BY1B/00034544/9)",null,null,2500,1250,{"$nulls":4},250,250]
[null,3,"WFOŚiGW","Pożyczka nr PB11044",null,null,654.88,null,"PLN","21-11-2011",null,"31-07-2018",null,"weksel in blanco, oświdczenie o poddaniu się egzekucji",null,null,980,573.03,{"$nulls":4},109.14,109.14]
[null,4,"WFOŚiGW","Pożyczka nr PB11002",null,null,356.27,null,"PLN","07-06-2011",null,"28-02-2018",null,"hipoteka wraz z cesją z polisy ubezp. , weksel in blanco, oświdczenie o poddaniu się egzekucji",null,null,{"$f":"190+360","v":550},282.05,{"$nulls":4},59.38,59.38]
[null,5,"Europejski Fundusz Leasingowy","Umowa Leasingu nr 20210/B/11",null,null,81.05,null,"PLN","08-08-2011",null,"08-08-2016",{"$nulls":5},48.14,{"$nulls":4},12.89,13.96]
[null,6,"VolkswagenLeasing Polska Sp. z o.o.","Umowa Leasingu nr 6193189-1213-00432",null,null,93.84,null,"PLN","31-01-2013",null,"30-12-2017",{"$nulls":5},71.02,{"$nulls":5},29.71]
[]
[null,"Czy wszystkie powyższe zaangażowania były w ciągu ostatnich 12 miesięcy obsługiwane terminowo?",{"$nulls":11},"TAK"]
[null,"Jeśli nie, proszę wypełnić poniższą tabelę"]
[]
[null,"Numer z tabeli powyżej",null,"Ilość opóźnień","Maksymalny okres opóźnienia \n(w dniach)",null,null,"Maksymalna kwota opóźnienia",null,null,"Czy aktualnie uregulowane?"]
[]
[]
["Zestawienie terminowych transakcji skarbowych zawartych z innymi podmiotami*"]
["(w pełnych kwotach nominalnych danej waluty, w poszczególnych kwartałach kalendarzowych)"]
[null,"Czynne transakcje skarbowe"]
[null,"Nazwa podmiotu",null,"Strona zabezpieczan (import/export)","Nazwa transakcji",null,"Łączna kwota transakcji","Waluta transakcji","Transakcja otwarta / zamknięta",null,"Bieżąca wycena / Nierozliczona kwota zamkniętych transakcji",null,"Kurs wyceny","Rodzaj zabezpieczenia transakcji, np.: depozyt zabezpieczający, limit skarbowy",{"$nulls":3},"Dodatkowe warunki modyfikujące profil wypłaty, np. bariery w opcjach walutowych",null,null,"Skumulowany nominał transakcji zapadających w bieżącym kwartale Q","Skumulowany nominał transakcji w kwartale Q+1","Skumulowany nominał transakcji w kwartale Q+2","Skumulowany nominał transakcji w kwartale Q+3","Skumulowany nominał transakcji w kwartale Q+4"]
[]
[null,"* należy podać jedynie aktywne transakcje terminowe oraz transakcje terminowe i kasowe (w tym transakcje wymiany walut) zamknięte, jednak nierozliczone (istniejące zobowiązanie np. w wyniku zamknięcia transakcji opcyjnej) albo odpowiednio nierozliczone w terminie. "]
[null,"Proszę podać informacje o posiadanych limitach skarbowych"]
[null,"Nazwa podmiotu",null,"Kwota limitu","Waluta limitu","Data ważności limitu \n(dd-mm-rrrr)",null,"Typy transakcji dostępne \nw ramach limitu",{"$nulls":10},"Maksymalne dostępne kwoty dla poszczególnych typów transakcji",null,null,"Typ zabezpieczenia",null,null,"Wartość zabezpieczenia"]
[]
[]
[]
[]
[null,"PODPISY"]
[]
[]
[]
[null,"Stempel Wnioskodawcy i podpisy osób upoważnionych",{"$nulls":19},"Miejscowość, data"]